Cogmind - Beta 10.2 @@@ ROGUE MODE // 2021.07.09 @ 21:31:30 Player: zapruda Result: Destroyed by L-31 Rogue with Katana Performance ------------- Evolutions (2) 1000 Regions Visited (4) 800 Robots Destroyed (41) 205 Value Destroyed (942) 942 Prototype IDs (4) 80 Alien Tech Used (0) 0 Bonus (81) 81 TOTAL SCORE: 3108 Bonus ------- High Alert Combat Kills 15 Follower Combat Kills 66 Cogmind --------- Core Integrity 0/550 Matter 279/300 Energy 34/125 System Corruption 0% Temperature Cool (0) Movement Flying (40) Location -8/Materials Parts ------- > --- POWER (1) -------- Light Ion Engine > --- PROPULSION (4) --- Flight Unit > --- UTILITY (4) ------ (None) > --- WEAPON (2) ------- (None) > --- INVENTORY (4) ---- Transport Network Coupler Peak State ------------ > --- POWER ------------ Improved Ion Engine > --- PROPULSION ------- Airjet Airjet Airjet Airjet > --- UTILITY ---------- Improved Heat Sink Enhanced Optical Array Improved Propulsion Shielding Light Armor Plating > --- WEAPON ----------- Plasma Cannon Plasma Cannon > --- INVENTORY -------- Airjet Airjet Heat Sink Transport Network Coupler [Rating: 33] Favorites ----------- Power Ion Engine Engine Ion Engine Propulsion Light Treads Treads Light Treads Leg Aluminum Leg Hover Unit Airjet Flight Unit Cesium-ion Thruster Utility Large Storage Unit Device Sensor Array Storage Large Storage Unit Processor Signal Interpreter Protection Improved Propulsion Shielding Weapon Assault Rifle Energy Gun Small Laser Energy Cannon Ion Cannon Ballistic Gun Assault Rifle Build | -11 -10 -9 -9 -8 ------- Run | Scr Mat Mat Min Mat Slots Evolved 4 | . . 2 . 2 Power . | . . . . . Propulsion 2 | . . . . 2 Utility 2 | . . 2 . . Weapon . | . . . . . Parts Attached 56 | 6 7 11 5 27 Power 8 | 1 2 2 . 3 Engine 8 | 1 2 2 . 3 Core . | . . . . . Reactor . | . . . . . Propulsion 22 | 2 . 3 3 14 Treads 2 | 2 . . . . Leg 6 | . . . 2 4 Wheel . | . . . . . Hover 6 | . . . . 6 Flight 8 | . . 3 1 4 Utility 14 | 2 2 4 1 5 Device 4 | . . 2 1 1 Storage 4 | 2 2 . . . Processor 3 | . . 2 . 1 Hackware . | . . . . . Protection 3 | . . . . 3 Artifact . | . . . . . Weapon 12 | 1 3 2 1 5 Energy Gun 6 | . 3 . . 3 Energy Cannon 5 | . . 2 1 2 Ballistic Gun 1 | 1 . . . . Ballistic Cannon . | . . . . . Launcher . | . . . . . Special Weapon . | . . . . . Impact Weapon . | . . . . . Slashing Weapon . | . . . . . Piercing Weapon . | . . . . . Special Melee Weapon . | . . . . . Unidentified Prototypes . | . . . . . Parts Lost 28 | . . 1 4 23 Power 3 | . . . . 3 Propulsion 11 | . . 1 . 10 Utility 8 | . . . 2 6 Weapon 6 | . . . 2 4 Highest Loss Streak 23 | . . 1 4 23 Average Slot Usage (%) 91 | . 96 96 75 83 Engine 11 | . 14 11 11 7 Treads 13 | . 28 1 . . Leg 2 | . . . 14 4 Hover 6 | . . . . 27 Flight 4 | . . 18 7 . Device 8 | . . 19 19 11 Storage 14 | . 28 5 . . Processor 6 | . . 17 11 8 Protection 2 | . . . . 9 Energy Gun 6 | . 10 2 . 2 Energy Cannon 6 | . . 15 11 9 Ballistic Gun 7 | . 14 2 . . Naked Turns 6 | . . . . 6 Heaviest Build 43 | 15 42 43 23 27 Greatest Support 72 | 40 40 40 20 72 Greatest Overweight (x) 14 | 1 1 14 1 1 Average Overweight (x) . | . . 1 . . Largest Inventory Capacity 16 | 8 16 16 4 4 Average Capacity 10 | 6 15 6 4 4 Most Carried 12 | 8 12 11 4 4 Average Carried 6 | 4 9 5 3 2 Final Capacity 16 | 8 16 4 4 4 Final Carried 12 | 8 12 3 4 1 Class Distribution -------------------- 74% | Mutant 14% | Skirmisher 10% | Scavenger-Mutant Dominant Class ---------------- Mutant | -10/Materials Skirmisher | -9/Materials Scavenger-Mutant | -9/Mines Mutant | -8/Materials Resources | -11 -10 -9 -9 -8 ----------- Run | Scr Mat Mat Min Mat Matter Collected 827 | 284 226 103 40 174 Remotely . | . . . . . Salvage Created 1524 | 140 702 125 189 368 Parts 102 | 8 49 8 6 31 Haulers Intercepted 3 | . 2 . . 1 Recyclers Shooed 1 | . 1 . . . Parts Field Recycled . | . . . . . Retrieved Matter . | . . . . . Parts Self-Destructed . | . . . . . Prevented . | . . . . . Kills | -11 -10 -9 -9 -8 ------- Run | Scr Mat Mat Min Mat Combat Hostiles Destroyed 23 | . 10 5 2 6 Guns 12 | . 10 . . 2 Cannons 11 | . . 5 2 4 Classes Destroyed 10 | 2 6 . . 2 Worker 4 | . 3 . . 1 Builder 3 | . 1 . . 2 Tunneler 2 | 2 . . . . Hauler 3 | . 2 . . 1 Recycler 3 | 1 1 . 1 . Watcher 3 | . 3 . . . Swarmer 7 | . 2 3 . 2 Grunt 12 | . 8 2 2 . Sentry 3 | . . . . 3 Hunter 1 | . . . . 1 Best Kill Streak 10 | 2 10 3 2 3 Combat Bots Only 3 | . 3 3 2 2 Max Kills in Single Turn 2 | 1 2 1 1 1 Gunslinging 1 | . 1 . . . Exploded . | . . . . . Melee . | . . . . . Uniques/NPCs Destroyed . | . . . . . Combat | -11 -10 -9 -9 -8 -------- Run | Scr Mat Mat Min Mat Damage Taken 3368 | . 739 276 139 2214 Core 782 | . 129 69 18 566 Absorbed by Shields . | . . . . . Core Remaining (%) 75 | 100 48 . 78 . Volleys Fired 112 | 8 52 16 10 26 Largest 2 | 1 2 2 1 2 Hottest 160 | 20 70 120 60 160 Shots Fired 191 | 8 101 32 10 40 Gun 121 | 8 101 . . 12 Cannon 70 | . . 32 10 28 Launcher . | . . . . . Special . | . . . . . Kinetic 60 | 8 52 . . . Thermal 120 | . 49 32 10 29 Explosive . | . . . . . Electromagnetic 11 | . . . . 11 Robot Hit Streak 11 | 8 11 6 4 8 Robot Miss Streak 6 | . 6 2 2 4 Penetration Max . | . . . . . Secondary Targets 4 | . 4 . . . Max Gunslinging Chain 1 | . 1 . . . Shots Hit Robots 116 | 8 59 19 7 23 Core Hits 56 | 4 30 5 4 13 Critical Hits 2 | . 2 . . . Critical Kills 1 | . 1 . . . Critical Parts Destroyed 1 | . 1 . . . Melee Attacks . | . . . . . Impact . | . . . . . Slashing . | . . . . . Piercing . | . . . . . Sneak Attacks . | . . . . . Combat Hostiles . | . . . . . Follow-up Attacks . | . . . . . Damage Inflicted 2114 | 95 778 499 160 582 Guns 1014 | 95 778 . . 141 Cannons 1012 | . . 494 160 358 Explosions . | . . . . . Melee . | . . . . . Ramming 88 | . . 5 . 83 Kinetic 457 | 95 362 . . . Thermal 1444 | . 416 494 160 374 Explosive . | . . . . . Electromagnetic 125 | . . . . 125 Impact . | . . . . . Slashing . | . . . . . Piercing . | . . . . . Highest Corruption 1 | . . 1 1 . Average Corruption 1 | . . 1 1 . Corruption Purged . | . . . . . Effects 1 | . . . 1 . Message Errors 1 | . . . 1 . Overload Shots . | . . . . . Overflow Damage 5 | . . . . 5 Projectiles 5 | . . . . 5 Explosions . | . . . . . Melee . | . . . . . Knockbacks . | . . . . . Impact . | . . . . . Kinetic . | . . . . . Secondary . | . . . . . Self-Inflicted Damage 41 | . . 2 . 39 Shots . | . . . . . Rammed 8 | . . 1 . 7 Targets Rammed 9 | . . 1 . 8 Kicked 1 | . . . . 1 Crushed . | . . . . . Highest Temperature 258 | . 174 248 229 258 Average Temperature 86 | . 55 126 123 80 Received Heat Transfer 1125 | . 360 66 78 621 Effects 3 | . . . 3 . Interference 3 | . . . 3 . Siege Activations . | . . . . . Robots Corrupted . | . . . . . Combat Hostiles . | . . . . . Parts Fried . | . . . . . Impact Corruptions . | . . . . . Robots Melted . | . . . . . Combat Hostiles . | . . . . . Parts Melted 2 | . . 1 . 1 Heat Transferred 2838 | . 1139 703 259 737 Parts Sabotaged . | . . . . . Parts Stolen . | . . . . . Parts Stripped . | . . . . . Power Chain Reactions . | . . . . . Missiles Intercepted . | . . . . . Alert | -11 -10 -9 -9 -8 ------- Run | Scr Mat Mat Min Mat Peak Influence 535 | 15 249 228 118 535 Initial 88 | . 9 64 88 45 Average 131 | 7 99 105 111 283 Maximum Alert Level 2 | . 1 1 . 2 Low Security (%) 84 | 100 93 88 100 48 Level 1 7 | . 6 11 . 10 Level 2 8 | . . . . 40 Level 3 . | . . . . . Level 4 . | . . . . . Level 5 . | . . . . . High Security . | . . . . . Max Security . | . . . . . Squads Dispatched 8 | . 3 1 . 4 Investigation 4 | . 2 1 . 1 Extermination . | . . . . . Reinforcement 3 | . 1 . . 2 Assault 1 | . . . . 1 Garrison . | . . . . . Intercept . | . . . . . Construction Impeded 1 | . . . . 1 Haulers Reinforced . | . . . . . Stealth | -11 -10 -9 -9 -8 --------- Run | Scr Mat Mat Min Mat Distress Signals 1 | . . . . 1 Communications Jammed . | . . . . . Distress Signals . | . . . . . Times Spotted 53 | . 15 9 2 27 Peak Tracking Total 12 | . 3 6 2 12 Tactical Retreats 6 | . . 2 . 4 Traps | -11 -10 -9 -9 -8 ------- Run | Scr Mat Mat Min Mat Traps Triggered 1 | . 1 . . . Indirectly . | . . . . . Trap Hack Attempts . | . . . . . Triggered . | . . . . . Disarmed 1 | . 1 . . . Reprogrammed . | . . . . . Reused . | . . . . . Traps Extracted . | . . . . . Installed . | . . . . . Triggered . | . . . . . Machines | -11 -10 -9 -9 -8 ---------- Run | Scr Mat Mat Min Mat Machines Disabled 4 | . . 1 1 2 Max in Single Turn 1 | . . 1 1 1 Garrison Access 1 | . . . . 1 Machines Sabotaged . | . . . . . Garrisons Compromised . | . . . . . Overloaded Fab Kills . | . . . . . Fab Network Shutdowns . | . . . . . Hacking | -11 -10 -9 -9 -8 --------- Run | Scr Mat Mat Min Mat Machines Accessed 9 | . 5 1 . 3 Terminals 7 | . 5 1 . 1 Fabricators . | . . . . . Repair Stations . | . . . . . Recycling Units 1 | . . . . 1 Scanalyzers . | . . . . . Garrison Access 1 | . . . . 1 Total Hacks 31 | . 22 2 . 7 Successful 18 | . 12 1 . 5 Failed 13 | . 10 1 . 2 Catastrophic 2 | . 1 1 . . Database Lockouts . | . . . . . Manual . | . . . . . Terminals 27 | . 22 2 . 3 Fabricators . | . . . . . Repair Stations . | . . . . . Recycling Units 1 | . . . . 1 Scanalyzers . | . . . . . Garrison Access 3 | . . . . 3 Terminal Hacks 15 | . 12 1 . 2 Prototype ID Bank 2 | . 2 . . . Branch Access Points 1 | . 1 . . . Emergency Access Points 1 | . 1 . . . Terminal Index 1 | . 1 . . . Alert Level 1 | . . . . 1 Locate Traps 1 | . 1 . . . Disarm Traps 1 | . 1 . . . Dispatch Records 2 | . 1 . . 1 Transport Status 1 | . 1 . . . Hauler Manifests 3 | . 2 1 . . Zone Layout 1 | . 1 . . . Fabricator Hacks . | . . . . . Repair Station Hacks . | . . . . . Recycling Unit Hacks 1 | . . . . 1 Report Inventory 1 | . . . . 1 Scanalyzer . | . . . . . Garrison Access Hacks 2 | . . . . 2 Unlock Access 1 | . . . . 1 Coupler Status 1 | . . . . 1 Unauthorized Hacks . | . . . . . Terminals . | . . . . . Fabricators . | . . . . . Repair Stations . | . . . . . Recycling Units . | . . . . . Scanalyzers . | . . . . . Garrison Access . | . . . . . Data Cores Recovered . | . . . . . Used . | . . . . . Hacking Detections 8 | . 5 1 . 2 Full Trace Events 4 | . 1 1 . 2 Feedback Events 1 | . . 1 . . Corruption 1 | . . 1 . . Feedback Blocked . | . . . . . Robot Schematics Acquired . | . . . . . Robots Built . | . . . . . Matter . | . . . . . Time . | . . . . . Total Robot Build Rating . | . . . . . Part Schematics Acquired . | . . . . . Parts Built . | . . . . . Matter . | . . . . . Time . | . . . . . Total Part Build Rating . | . . . . . Parts Repaired . | . . . . . Time . | . . . . . Parts Recycled . | . . . . . Recycled Matter . | . . . . . Retrieved Matter . | . . . . . Retrieved Components . | . . . . . Parts Scanalyzed . | . . . . . Part Schematics Acquired . | . . . . . Parts Damaged . | . . . . . Bothacking | -11 -10 -9 -9 -8 ------------ Run | Scr Mat Mat Min Mat Used RIF Installer . | . . . . . Robots Hacked . | . . . . . Non-combat . | . . . . . Combat . | . . . . . Robot Hacks Applied . | . . . . . Relay Couplers Released 2 | . . . . 2 Machine Destruction 2 | . . . . 2 Robots Rewired . | . . . . . Allies Hacked . | . . . . . Hacks Repelled . | . . . . . Allies | -11 -10 -9 -9 -8 -------- Run | Scr Mat Mat Min Mat Total Allies 2 | . . . 2 . Largest Group 2 | . . . 2 2 Highest-Rated Group 41 | . . . 41 41 Highest-Rated Ally 31 | . . . 31 31 Total Orders . | . . . . . Ally Attacks 8 | . . . . 8 Total Damage 124 | . . . . 124 Kills 2 | . . . . 2 Allies Corrupted . | . . . . . Allies Melted . | . . . . . Intel | -11 -10 -9 -9 -8 ------- Run | Scr Mat Mat Min Mat Robot Analysis Total . | . . . . . Derelict Logs Recovered 1 | . . . 1 . Drone Launches . | . . . . . Drone Recoveries . | . . . . . Exploration | -11 -10 -9 -9 -8 ------------- Run | Scr Mat Mat Min Mat Turns Passed 1576 | 129 699 306 122 320 Spaces Moved 917 | 63 315 135 75 329 Core 16 | 10 . 2 . 4 Treads 378 | 53 315 10 . . Legs 77 | . . . 66 11 Wheels . | . . . . . Hover 305 | . . . . 305 Flight 141 | . . 123 9 9 Fastest Speed 37 | 50 160 37 117 44 Average Speed 117 | 149 166 144 120 53 Slowest Speed 750 | 160 180 750 150 120 Overloaded Moves . | . . . . . Propulsion Burnouts . | . . . . . Robots Hopped . | . . . . . Cave-ins Triggered . | . . . . . Exploration Rate (%) 28 | 5 59 19 26 33 Regions Visited 4 Branch Regions 1 Pre-discovered Areas 1 | . . . 1 . Known Exits Taken 1 | . . 1 . . Unknown Exits Taken 3 | 1 1 . 1 . Scrap Searched . | . . . . . Spaces Dug . | . . . . . Terrain Destroyed 20 | . . 8 . 12 Melee . | . . . . . Projectile 20 | . . 8 . 12 AOE . | . . . . . Terrain Rammed . | . . . . . Walls Destroyed . | . . . . . Machines Disabled . | . . . . . Actions | -11 -10 -9 -9 -8 --------- Run | Scr Mat Mat Min Mat Total 1229 | 90 389 219 96 435 Wait 49 | . 1 34 . 14 Move 913 | 62 314 134 74 329 Hop . | . . . . . Pick Up 61 | 14 10 11 5 21 Fast Attach 3 | . . . . 3 Attach 43 | 6 2 9 2 24 Detach 1 | . . . . 1 Swap 10 | . 5 2 3 . Drop 28 | . 5 12 2 9 Fire 112 | 8 52 16 10 26 Melee . | . . . . . Ram 6 | . . 1 . 5 Kick 3 | . . . . 3 Crush . | . . . . . Escape Stasis . | . . . . . Rewire . | . . . . . Trap . | . . . . . Miscellaneous . | . . . . . Route ------- -11/Scrapyard -10/Materials (discovered 4 exits: *Mat x2 / *Min x2) -9/Materials -9/Mines -8/Materials History --------- Turn | Location | Event 20 | -11/Scrapyard | Discovered new exit (range 16) 130 | -11/Scrapyard | Entered Materials 239 | -10/Materials | Identified exit to Mines 302 | -10/Materials | Build established: Mutant 430 | -10/Materials | Discovered new exit (range 12) 739 | -10/Materials | Core integrity fell below 50% 813 | -10/Materials | Discovered new exit (range 9) 829 | -10/Materials | Entered another Materials area 829 | -9/Materials | Evolved 2 slots: Utility x2 1123 | -9/Materials | Discovered new exit (range 6) 1133 | -9/Materials | Identified exit to Mines 1135 | -9/Materials | Entered Mines 1176 | -9/Mines | Lost 4 parts (2u2w) 1209 | -9/Mines | Discovered new exit (range 10) 1257 | -9/Mines | Entered Materials 1257 | -8/Materials | Accompanied by 2 allies 1257 | -8/Materials | Evolved 2 slots: Propulsion x2 1262 | -8/Materials | Led the pair of lost Derelicts to an unsafe place 1398 | -8/Materials | Identified exit to Garrison 1566 | -8/Materials | Core integrity fell below 50% 1571 | -8/Materials | Core integrity fell below 20% 1577 | -8/Materials | Destroyed by L-31 Rogue with Katana Last Messages --------------- Acquired 18 matter. Shock Rifle destroyed. Acquired 12 matter. K-01 Serf collects debris. Slammed into S-10 Pest. Destabilizing: Core damaged (-11). Imp. Carbon-fiber Leg destroyed. Slammed into G-47 Trooper. Imp. Carbon-fiber Leg destroyed. Kicked G-47 Trooper out of the way. Lgt. Ion Engine destroyed. S-10 Pest IFF system glitched. Imp. Carbon-fiber Leg destroyed. Heat Sink destroyed. Enh. Optical Array destroyed. Acquired Particle Gun. Particle Gun destroyed. Acquired 4 matter. Acquired Lgt. Ion Engine. Acquired Flight Unit. Map ----- +----------------------------------------------------+ | | | | | | | | | | | | | | | | | | | | | | | | | | | | | | | | | | | ?????????????????????????????????????????????????? | | ??????????????????????????########???????????????? | | ??????????????????????????# !!==#???????????????? | | ??????????????????????????# !!==#???????????????? | | #####?????????????????????# %% #???????????????? | | #????????????#######??## ! #???????????????? | | ### #????????????# #####g=g #???????????????? | | ??# ############## l g T #???????????????? | | ??# *%=|!%u %% @%=s"" #???????????????? | | ??################ a #???????????????? | | ?????????????????# ##### #???????????????? | | ##???????????????#######???### ###???????????????? | | #???????????????????????????#%#?????????????????? | | #???????????????????????????# #?????????????????? | | #???????????????????????????+ ?????????????????? | | #???????????????????????????# ?????????????????? | | #???????????????????????????#+##????????????????? | | #???????????????????????????????????????????????? | | #???????????????????????????????????????????????? | | #???????????????????????????????????????????????? | | #???????????????????????????????????????????????? | | ##???????????????????????????????????????????????? | | ?????????????????????????????????????????????????? | | ?????????????????????????????????????????????????? | | ?????????????????????????????????????????????????? | | ?????????????????????????????????????????????????? | | ?????????????????????????????????????????????????? | | ?????????????????????????????????????????????????? | | ?????????????????????????????????????????????????? | | ?????????????????????????????????????????????????? | | ?????????????????????????????????????????????????? | | ?????????????????????????????????????????????????? | | ?????????????????????????????????????????????????? | +----------------------------------------------------+ Best States ------------- Heat Dissipation 55 Energy Generation 12 Energy Capacity 265 Matter Stores 300 Matter Capacity 300 Sight Range 22 Robot Scan Range 10 Terrain Scan Density 10 Armor Coverage 150 Propulsion Shielding 66 Evasion (%) 62 Recoil Reduction 2 Particle Charging 15 Item Schematics ----------------- None Robot Schematics ------------------ None Fabricated ------------ Nothing Alien Tech Used ----------------- None Achievements -------------- None Challenges ------------ None Game ------ Seed RagnarokReactionAutohacker Manual? 0 Play Time 00:24:12 Cumulative 14.8 hours Start 2021.07.09 @ 21:09:20 End 2021.07.09 @ 21:31:30 Sessions 1 Manual Loads 0 Difficulty Rogue Special Mode None Game No. 26 Rogue 26 Adventurer 0 Explorer 0 Win Type - Total 0 Types 0/0/0/0/0/0/0/0/0 Lore% 17 Gallery% 26 Achievement% 16 Wizard Run 0 Options --------- ASCII 0 Keyboard 0 Movement Mouse Keybinds 0 Fullscreen 1 Font 18/SmallcapsGlow Map View 76x50 Tactical HUD 0 Map Filters NONE Filters NONE Steam 1 RUN: eff8fbad-00e8-4556-8517-7f402ad4cadc